bitfinex-derivatives/quotes_ETHF0:USTF0_20260128
["timestamp","ask_amount","ask_price","bid_price","bid_amount"]
[1769596499880,2.90551467,3028.1,3027.0,3.4072978]
[1769596500075,3.47291247,3028.3,3027.0,3.4072978]
[1769596500274,2.90551275,3028.2,3027.0,3.4072978]
[1769596500479,2.90551275,3028.1,3027.0,3.4072978]
[1769596500672,3.47291247,3028.3,3027.0,3.4072978]
[1769596500873,2.90534481,3028.2,3027.4,3.43889654]
[1769596501172,3.47291247,3028.3,3027.4,3.43889654]
[1769596501376,2.90470884,3028.2,3027.4,3.43889654]
[1769596501678,3.47580127,3028.5,3027.4,3.43889654]
[1769596501882,0.0028888,3028.5,3027.8,3.43889654]
[1769596502076,3.47291247,3028.7,3027.8,3.43889654]
[1769596502381,7.25956717,3029.6,3027.8,3.43889654]
[1769596502382,5.94724078,3029.6,3027.8,3.43889654]
[1769596502677,3.47291247,3029.4,3028.0,3.43889654]
[1769596502881,6.37592616,3029.3,3028.2,3.43889654]
[1769596503179,2.90301369,3029.2,3028.2,3.44162925]
[1769596503373,2.90301369,3029.1,3028.2,3.44162925]
[1769596503575,3.47653207,3029.3,3028.2,3.44162925]
[1769596503776,2.90067054,3029.2,3028.2,3.44162925]
[1769596504075,2.90067054,3029.1,3028.2,3.44162925]
[1769596504271,0.0036196,3029.3,3028.2,3.44162925]
[1769596504581,2.89888609,3029.2,3028.2,3.44162925]
[1769596504783,2.89888609,3029.1,3028.2,3.44162925]
[1769596505082,0.0036196,3029.3,3028.2,3.44162925]
[1769596505275,2.89762294,3029.2,3028.2,3.44162925]
[1769596505476,0.0036196,3029.3,3028.2,3.44162925]
[1769596505676,2.89740576,3029.2,3028.2,3.44162925]
[1769596505877,0.0036196,3029.3,3028.2,3.44162925]
[1769596506077,6.37031768,3029.2,3028.2,3.44162925]
[1769596506379,3.47291247,3029.2,3028.2,3.44162925]
[1769596511385,3.47291247,3029.2,3028.2,0.00273271]
[1769596511585,3.47291247,3029.2,3028.2,3.44162925]
[1769596515988,3.47291247,3029.0,3028.2,0.00273271]
[1769596517087,3.47291247,3029.0,3027.8,3.25771961]
[1769596518087,3.47291247,3029.0,3027.8,3.26112368]
[1769596519185,3.47291247,3028.8,3027.8,0.00340407]
[1769596519390,3.47291247,3028.6,3027.8,0.00340407]
[1769596520895,3.47291247,3028.4,3027.8,0.00340407]
[1769596524293,3.47291247,3028.2,3027.8,0.00340407]
[1769596524494,3.47291247,3028.2,3027.4,3.23649599]
[1769596524997,3.4045065,3028.0,3026.9,2.82020572]
[1769596525596,3.4045065,3028.0,3026.9,2.82402852]
[1769596525995,3.4045065,3028.0,3027.1,3.26854315]
[1769596528500,3.4045065,3028.0,3027.0,3.93417268]
[1769596528686,3.4045065,3028.0,3027.0,7.20312542]
[1769596529092,3.4045065,3028.0,3027.0,3.26895274]
[1769596529289,3.4045065,3028.0,3026.9,0.0038228]
[1769596534592,3.4045065,3028.0,3026.9,3.33919027]
[1769596535506,3.37426735,3028.4,3026.9,3.33919027]
[1769596535817,3.37426735,3028.4,3027.1,3.35070431]
[1769596535998,0.1653,3029.2,3027.1,3.35070431]
[1769596536199,3.37426735,3029.0,3027.1,3.35070431]
[1769596536402,3.37426735,3028.8,3027.1,3.35070431]
[1769596536600,2.89246741,3028.7,3027.1,3.35070431]
[1769596536801,3.37426735,3028.6,3027.1,3.35070431]
[1769596536997,6.26673476,3028.5,3027.1,3.35070431]
[1769596537198,3.37426735,3028.5,3027.1,3.35070431]
[1769596538400,3.37426735,3028.5,3027.1,3.51611431]
[1769596539208,3.37426735,3028.5,3027.2,3.22498342]
[1769596539911,3.37426735,3029.1,3027.5,3.20940799]
[1769596540106,3.37426735,3028.9,3027.5,3.20940799]
[1769596540405,3.37426735,3028.7,3027.5,3.20940799]
[1769596541605,3.37788695,3029.3,3027.9,3.19177354]
[1769596541808,3.37426735,3029.1,3027.9,3.19177354]
[1769596542510,3.37788695,3029.3,3027.9,3.19177354]
[1769596542806,2.89308789,3029.2,3027.9,3.19177354]
[1769596543011,3.37788695,3029.3,3027.9,3.19177354]
[1769596543310,2.89306433,3029.2,3027.9,3.19177354]
[1769596543502,3.37788695,3029.3,3027.9,3.19177354]
[1769596543702,2.89286671,3029.2,3027.9,3.19177354]
[1769596543904,3.37788695,3029.3,3027.9,3.19177354]
[1769596544100,3.37788695,3029.3,3028.3,3.21435451]
[1769596547716,3.37788695,3029.3,3028.5,4.52354113]
[1769596549825,3.37788695,3029.3,3028.6,3.19696835]
[1769596553724,3.37426735,3029.0,3028.0,3.35307999]
[1769596555826,1.31062343,3028.9,3028.0,3.18771999]
[1769596556031,3.42298726,3028.8,3028.0,3.18771999]
[1769596562037,3.42298726,3029.0,3028.0,3.18771999]
[1769596566137,0.0036196,3029.3,3028.6,3.20019836]
[1769596566338,2.89514563,3029.2,3028.7,3.20019836]
[1769596566538,3.42298726,3029.6,3028.7,3.20019836]
[1769596566736,2.89509123,3029.5,3028.7,3.20019836]
[1769596566938,2.89509123,3029.4,3028.7,3.20019836]
[1769596567137,2.89509123,3029.3,3028.7,3.20019836]
[1769596567436,0.0030449,3029.3,3028.7,3.20019836]
[1769596568439,3.42298726,3029.8,3028.9,3.20019836]
[1769596568737,6.31979917,3029.7,3028.9,3.20019836]
[1769596568942,6.31979917,3029.6,3028.9,3.20019836]
[1769596569144,2.89681191,3029.5,3028.9,3.20019836]
[1769596569443,2.89681191,3029.4,3028.9,3.20019836]
[1769596576252,6.31979917,3029.4,3028.9,3.20019836]
[1769596576456,2.89681191,3029.3,3028.9,3.20019836]
[1769596576753,3.42298726,3029.4,3028.9,3.20019836]
[1769596576958,6.31503129,3029.3,3028.8,3.23610659]
[1769596577250,3.42298726,3029.0,3028.1,3.93417268]
[1769596577454,3.42298726,3029.0,3028.1,3.23610659]
[1769596579856,3.42298726,3029.4,3028.5,4.58085748]
[1769596580055,3.42298726,3029.2,3028.3,4.58085748]
[1769596580247,2.89843228,3029.1,3028.4,3.27023405]
[1769596580448,3.42298726,3029.1,3028.4,3.27023405]
[1769596582550,3.42298726,3029.1,3028.2,3.42103842]
[1769596583858,3.42298726,3029.3,3028.4,3.42103842]
[1769596584062,2.8984098,3029.2,3028.4,3.42103842]
[1769596584360,2.8984098,3029.1,3028.4,3.42103842]
[1769596584562,3.42298726,3029.3,3028.4,3.42103842]
[1769596584864,2.89841706,3029.2,3028.4,3.42103842]
[1769596585056,2.89841706,3029.1,3028.4,3.42103842]
[1769596585257,3.66730457,3029.2,3028.4,3.42103842]
[1769596585562,2.89842708,3029.1,3028.4,3.42103842]
[1769596585859,3.66730457,3029.2,3028.4,3.42103842]
[1769596586669,3.61525147,3029.1,3028.1,3.43195669]
[1769596587360,3.61525147,3029.1,3028.2,3.43195669]
[1769596588160,0.00250504,3029.5,3027.4,7.36970204]
[1769596588161,2.30996142,3028.2,3027.4,7.36970204]
[1769596588352,2.30996142,3028.2,3027.4,3.43195669]
[1769596590264,3.61525147,3028.4,3027.4,3.43195669]
[1769596590463,3.61525147,3028.9,3028.0,4.74258012]
[1769596590668,3.61525147,3028.9,3028.1,3.43195669]
[1769596596073,2.96227792,3028.8,3028.1,3.43195669]
[1769596596270,3.61525147,3028.9,3028.1,3.43195669]
[1769596598266,3.61525147,3029.2,3028.1,3.43195669]
[1769596598468,2.96213937,3029.1,3028.1,3.43195669]
[1769596598667,2.96213937,3029.0,3028.1,3.43195669]
[1769596598867,2.96213937,3028.9,3028.1,3.43195669]
[1769596599077,3.61525147,3029.2,3028.1,3.43195669]
[1769596599275,6.57737911,3029.1,3028.1,3.43195669]
[1769596599473,2.96212764,3029.0,3028.1,3.43195669]
[1769596599778,3.61525147,3028.9,3028.1,3.43195669]
[1769596603078,3.61525147,3028.9,3028.2,3.43195669]
[1769596603281,3.01444829,3028.8,3028.2,3.43195669]
[1769596603473,3.61525147,3028.9,3028.2,3.43195669]
[1769596603771,3.01444829,3028.8,3028.2,3.43195669]
[1769596603972,3.61525147,3028.9,3028.2,3.43195669]
[1769596604177,6.62969976,3028.8,3028.0,3.43195669]
[1769596604379,3.61525147,3028.8,3028.0,3.43195669]
[1769596606071,6.63043001,3028.7,3028.0,2.833]
[1769596606381,3.01562734,3028.6,3028.0,2.833]
[1769596606580,3.61525147,3028.7,3028.0,6.26495669]
[1769596606786,3.01563073,3028.6,3028.0,6.26495669]
[1769596606983,3.61525147,3028.7,3028.0,6.26495669]
[1769596607185,3.01563091,3028.6,3028.0,6.26495669]
[1769596607375,3.61525147,3028.7,3028.0,6.26495669]
[1769596607576,3.01614026,3028.6,3028.0,3.43195669]
[1769596607774,3.61525147,3028.7,3028.0,3.43195669]
[1769596607980,3.01614041,3028.6,3028.0,3.43195669]
[1769596608280,3.61525147,3028.7,3028.0,3.43195669]
[1769596608482,3.01634693,3028.6,3028.0,3.43195669]
[1769596608781,3.61525147,3029.4,3028.0,3.43195669]
[1769596608976,3.01634436,3029.3,3028.0,3.43195669]
[1769596609178,3.61525147,3029.1,3028.0,3.43195669]
[1769596609382,6.63159583,3029.0,3028.0,3.43195669]
[1769596609586,3.01634436,3028.9,3028.0,3.43195669]
[1769596610290,6.63159583,3028.9,3028.0,3.43195669]
[1769596610589,3.01634436,3028.8,3028.0,3.43195669]
[1769596611489,6.63159583,3028.8,3028.0,3.43195669]
[1769596611691,3.01634436,3028.7,3028.0,3.43195669]
[1769596612592,3.61525147,3028.6,3027.7,0.16538]
[1769596612790,3.01695114,3028.5,3027.8,6.22195669]
[1769596612986,3.61525147,3028.5,3027.8,3.43195669]
[1769596613388,3.61525147,3028.5,3027.7,0.16538]
[1769596614196,3.61525147,3028.5,3027.7,3.59733669]
[1769596614493,3.61525147,3028.3,3027.6,3.781]
[1769596614794,3.61525147,3028.3,3027.6,7.22007145]
[1769596616290,3.61525147,3028.3,3027.7,3.841]
[1769596616893,3.44378622,3028.5,3027.8,3.43907145]
[1769596617395,3.44378622,3029.3,3027.8,3.43907145]
[1769596617591,0.16528,3029.4,3027.8,3.43907145]
[1769596617592,3.44378622,3029.1,3027.8,3.43907145]
[1769596617798,3.44378622,3028.9,3027.8,3.43907145]
[1769596617997,3.44378622,3028.7,3027.8,3.43907145]
[1769596618198,3.02199599,3028.6,3027.8,3.43907145]
[1769596618999,6.46578221,3028.6,3027.8,3.43907145]
[1769596619194,3.44378622,3028.6,3027.8,3.43907145]
[1769596619590,3.44378622,3028.4,3027.4,7.34007145]
[1769596619797,3.44378622,3028.4,3027.5,3.43907145]
[1769596620294,3.02403275,3028.3,3027.5,3.43907145]
[1769596620496,3.44378622,3028.4,3027.5,3.43907145]
[1769596620798,6.46781897,3028.3,3027.5,3.43907145]
[1769596620991,3.44378622,3028.3,3027.5,3.43907145]
[1769596622792,3.44378622,3028.3,3027.5,7.40507145]
[1769596624298,3.44378622,3028.3,3027.5,3.43907145]
[1769596624501,3.44378622,3028.3,3027.5,7.42607145]
[1769596625701,3.44378622,3028.3,3027.5,7.46007145]
[1769596626705,3.44378622,3028.3,3027.1,3.43907145]
[1769596627002,3.44378622,3028.3,3027.2,4.044]
[1769596627607,3.44378622,3028.3,3027.2,7.48307145]
[1769596627800,3.44378622,3028.3,3027.2,3.43907145]
[1769596628098,3.44378622,3028.3,3027.2,7.49307145]
[1769596629802,3.44378622,3028.3,3027.2,7.52307145]
[1769596633799,3.44378622,3028.3,3027.2,3.43907145]
[1769596633999,3.44378622,3028.3,3027.2,7.59107145]
[1769596634299,3.44378622,3028.3,3027.2,3.43907145]
[1769596638609,3.44378622,3028.1,3027.2,3.43907145]
[1769596638904,3.44378622,3028.1,3027.1,4.178]
[1769596639097,3.44378622,3028.1,3026.9,3.44289425]
[1769596639405,3.44378622,3027.9,3026.9,3.44289425]
[1769596639804,3.44378622,3028.1,3027.0,3.43907145]
[1769596640106,3.02671377,3028.0,3027.0,3.43907145]
[1769596640305,3.44378622,3028.1,3027.0,3.43907145]
[1769596640509,3.02666787,3028.0,3027.0,3.43907145]
[1769596640702,3.44378622,3028.1,3027.0,3.43907145]
[1769596640899,3.02666787,3028.0,3027.0,3.43907145]
[1769596641102,3.44378622,3028.0,3027.0,3.43907145]
[1769596645118,3.44378622,3028.0,3026.9,0.0038228]
[1769596645410,3.61410097,3027.8,3026.9,0.0038228]
[1769596649912,3.61410097,3027.8,3026.4,3.72076488]
[1769596650109,3.02766078,3027.7,3026.4,3.72076488]
[1769596650307,3.82790403,3027.5,3026.4,3.72076488]
[1769596651106,3.82790403,3027.5,3026.4,3.72353757]
[1769596652212,3.82790403,3027.7,3026.5,1.31109251]
[1769596652514,3.82790403,3027.7,3026.6,3.72076488]
[1769596652907,3.82790403,3027.5,3026.4,3.72353757]
[1769596655619,3.02610771,3027.4,3026.4,3.72353757]
[1769596655809,3.82790403,3027.5,3026.4,3.72353757]
[1769596656120,3.82790403,3027.3,3026.4,3.72353757]
[1769596656409,3.8320257,3027.3,3026.4,3.72353757]
[1769596657518,3.82790403,3027.1,3026.4,0.00277269]
[1769596657723,3.82790403,3027.1,3026.2,3.72076488]
[1769596658313,3.82790403,3027.1,3025.9,3.72076488]
[1769596658814,3.82790403,3027.1,3025.9,3.7247084]
[1769596661521,3.02467958,3027.0,3025.9,3.7247084]
[1769596661721,3.82790403,3026.8,3025.9,3.7247084]
[1769596662922,3.82790403,3026.8,3025.9,0.00394352]
[1769596671522,3.82790403,3026.6,3025.9,0.00394352]
[1769596673823,3.82790403,3026.6,3025.6,5.03376248]
[1769596674618,3.82790403,3026.6,3025.6,5.03741123]
[1769596675027,3.82790403,3026.6,3025.6,1.31664635]
[1769596675828,3.82790403,3026.6,3025.6,4.93397011]
[1769596680327,3.82790403,3026.6,3025.7,3.61732376]
[1769596682527,3.82790403,3026.6,3025.6,0.00364875]
[1769596682528,1.3129976,3026.5,3025.6,0.00364875]
[1769596682731,3.63708937,3026.4,3025.6,0.00364875]
[1769596686328,3.63708937,3027.0,3026.2,1.3129976]
[1769596686634,3.63708937,3026.8,3026.0,1.3129976]
[1769596686832,3.63708937,3026.6,3026.0,1.3129976]
[1769596688150,3.63708937,3026.6,3025.9,3.61732376]
[1769596690248,3.63708937,3026.6,3025.8,1.3129976]
[1769596691848,3.63708937,3026.6,3025.7,3.61732376]
[1769596695856,3.63708937,3026.6,3025.8,4.92510741]
[1769596696554,3.63708937,3026.6,3025.7,4.92510741]
[1769596698456,3.63708937,3026.6,3025.6,8.54607992]
[1769596700262,3.63708937,3026.6,3025.7,3.61732376]
[1769596702058,3.63708937,3026.6,3025.6,4.92875616]
[1769596702363,3.63708937,3026.6,3025.6,8.54607992]
[1769596702755,3.63708937,3026.6,3025.7,3.61732376]
[1769596703361,3.63708937,3027.1,3026.0,3.61732376]
[1769596703663,3.63708937,3027.1,3026.4,3.61732376]
[1769596706162,2.746797,3027.3,3026.4,3.61732376]
[1769596710765,0.00412167,3027.3,3026.4,3.61732376]
[1769596711269,0.00412167,3027.3,3026.6,2.69291373]
[1769596716268,2.74267533,3027.5,3026.5,1.3129976]
[1769596716269,2.74267533,3028.3,3027.2,2.69291373]
[1769596716570,2.74267533,3028.1,3027.2,2.69291373]
[1769596717364,2.74563127,3028.1,3027.2,2.69291373]
[1769596719774,0.00295594,3028.1,3027.4,2.69291373]
[1769596721176,0.00295594,3028.1,3027.6,2.69291373]
[1769596721474,2.74267533,3028.5,3027.6,2.69291373]
[1769596722380,2.74577022,3028.5,3027.6,2.69291373]
[1769596725574,4.05876782,3028.5,3027.6,2.69291373]
[1769596725771,2.74267533,3028.4,3027.6,2.69291373]
[1769596726874,2.74267533,3028.4,3027.3,2.69291373]
[1769596729280,2.74267533,3028.4,3027.4,2.69291373]
[1769596729476,0.00309489,3028.5,3027.4,2.69291373]
[1769596729673,0.00309489,3028.5,3027.6,2.69291373]
[1769596735682,1.85639978,3028.5,3027.6,2.69291373]
[1769596743494,0.00309489,3028.5,3027.6,2.69291373]
[1769596743991,1.85330489,3028.7,3027.6,2.69291373]
[1769596744896,1.85592305,3028.7,3027.6,2.69291373]
[1769596747298,3.03302663,3028.6,3027.6,2.69291373]
[1769596747598,0.00261816,3028.7,3027.6,2.69291373]
[1769596756310,1.85592305,3028.7,3027.8,1.9239487]
[1769596756513,1.85592305,3028.7,3027.8,1.92644456]
[1769596757217,1.85592305,3028.7,3027.9,1.9239487]
[1769596757912,1.31138889,3028.6,3027.8,0.00249586]
[1769596758114,1.85330489,3028.1,3027.3,1.9239487]
[1769596759119,1.85330489,3028.1,3027.3,1.92771313]
[1769596759519,1.85330489,3028.5,3027.3,1.92771313]
[1769596760418,1.85330489,3028.5,3027.4,1.9239487]
[1769596761120,1.85592305,3028.7,3027.4,1.9239487]
[1769596763719,1.85592305,3028.7,3027.5,1.9239487]
[1769596767320,1.29215167,3028.5,3027.5,1.9239487]
[1769596772828,0.00261816,3028.7,3027.5,1.9239487]
[1769596773027,3.1044383,3028.6,3027.5,1.9239487]
[1769596773228,1.29476983,3028.7,3027.5,1.9239487]
[1769596773428,4.3965578,3028.6,3027.5,1.9239487]
[1769596773625,1.29215167,3028.6,3027.5,1.9239487]
[1769596776835,1.29215167,3028.5,3027.3,0.00376443]
[1769596777137,1.29215167,3028.5,3027.3,1.26604607]
[1769596779836,5.07915167,3028.5,3027.3,0.00376443]
[1769596780135,1.29215167,3028.3,3027.3,0.00376443]
[1769596781135,3.787,3028.5,3026.7,1.26228164]
[1769596781136,1.45751167,3028.1,3026.7,1.26228164]
[1769596781335,1.29215167,3027.9,3026.7,1.26228164]
[1769596782032,1.29215167,3027.9,3026.7,1.2651204]
[1769596789643,1.29215167,3027.9,3027.0,1.26228164]
[1769596792640,1.29215167,3027.9,3026.8,1.26228164]
[1769596794934,0.99667228,3027.7,3026.7,0.00283876]
[1769596801752,0.99667228,3026.7,3025.9,5.91336546]
[1769596801951,0.99667228,3026.7,3025.9,1.00884004]
[1769596802754,0.99667228,3026.7,3026.0,2.32078096]
[1769596803144,0.99667228,3027.0,3026.2,2.32078096]
[1769596803350,0.99667228,3027.0,3026.4,1.31194092]
[1769596803952,0.99667228,3027.0,3026.3,1.00884004]
[1769596806255,0.99667228,3027.0,3026.2,1.31194092]
[1769596806452,0.99667228,3027.0,3026.1,1.00884004]
[1769596807146,0.99667228,3026.7,3025.9,0.00275466]
[1769596810857,0.99667228,3026.7,3025.9,2.32353562]
[1769596811660,0.99667228,3026.7,3026.0,1.00884004]
[1769596815157,0.99667228,3027.2,3026.0,1.00884004]
[1769596819255,0.99667228,3027.2,3026.4,1.00884004]
[1769596823161,0.99667228,3027.2,3026.0,1.00884004]
[1769596826557,0.99667228,3027.2,3026.1,1.31194092]
[1769596826870,0.99667228,3027.2,3026.4,0.7368]
[1769596827066,0.68858083,3027.6,3026.4,0.7368]
[1769596827261,0.68858083,3027.6,3026.6,0.7368]
[1769596828162,0.68858083,3027.8,3026.8,0.7368]
[1769596828359,0.68858083,3027.8,3027.0,0.7368]
[1769596828758,0.68858083,3028.0,3027.0,0.7368]
[1769596829062,0.68858083,3028.0,3027.2,0.7368]
[1769596829262,0.68858083,3028.3,3027.2,0.7368]
[1769596833960,0.68858083,3028.5,3027.4,0.7368]
[1769596835366,2.00052175,3028.4,3027.4,0.7368]
[1769596835668,0.68858083,3028.3,3027.4,0.7368]
[1769596842370,1.31194092,3028.2,3027.4,0.7368]
[1769596842569,0.68858083,3028.1,3027.4,0.7368]
[1769596846072,1.31194092,3028.4,3027.2,0.7368]
[1769596846264,0.68858083,3028.3,3027.2,0.7368]
[1769596847974,0.00261816,3028.7,3027.2,0.7368]
[1769596847975,0.69119899,3028.7,3027.6,0.7368]
[1769596848172,0.69119899,3028.7,3027.8,0.7368]
[1769596848371,0.69119899,3028.7,3026.8,3.18]
[1769596848372,0.69119899,3028.7,3028.0,0.7368]
[1769596849072,0.68858083,3028.6,3027.8,0.7368]
[1769596849271,0.68858083,3028.6,3027.6,0.7368]
[1769596850068,0.68858083,3028.6,3027.4,0.7368]
[1769596850263,0.68858083,3028.6,3027.0,0.16541]
[1769596850264,0.68858083,3028.6,3027.1,0.7368]
[1769596856278,0.68858083,3028.6,3027.2,0.55664534]
[1769596857583,3.14023682,3028.5,3027.2,0.55664534]
[1769596857788,0.5416956,3028.4,3027.2,0.55664534]
[1769596860386,0.5416956,3028.4,3027.2,5.46117076]
[1769596861379,0.5416956,3028.4,3027.3,0.55664534]
[1769596862184,0.5416956,3028.4,3027.2,4.90452542]
[1769596862381,0.5416956,3027.8,3026.8,4.90452542]
[1769596862582,0.5416956,3027.8,3026.7,5.46117076]
[1769596862783,0.5416956,3027.8,3026.8,0.55664534]
[1769596865575,0.5416956,3028.6,3026.8,0.55664534]
[1769596865776,0.5416956,3028.4,3026.8,0.55664534]
[1769596866089,0.5416956,3028.2,3026.8,0.55664534]
[1769596866279,0.5416956,3028.0,3026.8,0.55664534]
[1769596872395,0.5416956,3028.0,3027.0,0.55664534]
[1769596882500,0.7070556,3028.0,3026.8,0.53730035]
[1769596882703,0.5416956,3027.9,3026.6,0.53730035]
[1769596885006,0.42909355,3027.8,3026.6,0.53730035]
[1769596885208,0.42909355,3027.6,3026.4,0.43226466]
[1769596886311,0.43492518,3027.4,3026.4,0.43226466]
[1769596894417,0.43492518,3027.7,3026.4,0.43226466]
[1769596894617,0.43492518,3027.5,3026.4,0.43226466]
[1769596898916,0.43492518,3027.5,3026.2,0.38515645]
[1769596899220,0.43492518,3027.4,3026.2,0.38515645]
[1769596899618,0.43492518,3027.4,3026.0,0.38515645]
[1769596900922,0.43492518,3027.4,3026.1,0.38476178]
[1769596907622,0.43492518,3027.3,3026.1,0.38476178]
[1769596909731,0.43492518,3027.3,3026.4,0.32634657]
[1769596911720,1.0,3027.4,3026.8,0.30984246]
[1769596917330,0.43492518,3027.6,3026.8,0.30984246]
[1769596921037,0.43492518,3027.6,3026.9,1.56397034]
[1769596927043,0.43492518,3027.6,3027.0,0.22485986]
[1769596932346,0.43492518,3027.6,3026.8,0.1977732]
[1769596933242,0.35121423,3027.9,3027.4,1.50494886]
[1769596933436,1.31256177,3028.5,3027.4,1.50494886]
[1769596933635,0.35121423,3028.3,3027.4,0.19238709]
[1769596933839,0.35121423,3028.1,3027.4,0.19238709]
[1769596935549,0.35121423,3028.1,3027.5,0.1806329]
[1769596942554,0.35121423,3028.1,3027.0,0.15010727]
[1769596942755,0.35121423,3027.6,3027.0,0.15010727]
[1769596946447,0.27182725,3028.1,3027.0,0.15010727]
[1769596951454,0.16533,3028.6,3027.6,1.31256177]
[1769596951455,0.27182725,3028.3,3027.6,1.31256177]
[1769596951759,0.27182725,3028.3,3027.6,0.10743483]
[1769596953058,0.27182725,3028.3,3027.4,0.10273987]
[1769596955763,0.27182725,3028.3,3027.4,1.41530164]
[1769596956760,0.27182725,3028.3,3027.5,0.092914]
[1769596962362,0.27182725,3028.3,3027.3,0.0765514]
[1769596964055,0.27182725,3028.3,3027.2,1.31256177]
[1769596970774,0.27182725,3028.3,3027.2,1.36085469]
[1769596971574,0.27182725,3028.3,3027.2,0.04829292]
[1769596976275,0.2338908,3028.1,3027.2,0.04829292]
[1769596980270,0.2338908,3028.1,3026.9,0.16542]
[1769596980476,0.23380816,3027.9,3026.9,0.16542]
[1769596983581,0.23380816,3027.9,3026.8,4.90452542]
[1769596985295,0.23380816,3027.9,3026.7,4.90452542]
[1769596985498,0.23380816,3027.9,3026.8,1.31175572]
[1769596986097,0.23380816,3027.9,3026.8,6.21628114]
[1769596986296,0.23380816,3027.9,3027.0,4.90452542]
[1769596986893,0.23380816,3027.9,3027.1,4.90452542]
[1769596989199,0.23206339,3028.2,3027.1,4.90452542]
[1769596995903,0.39772026,3028.4,3027.2,1.31175572]
[1769596996103,3.12356105,3028.3,3027.2,1.31175572]
[1769596996401,3.35594488,3028.2,3027.2,1.31175572]
[1769596996603,0.23238026,3028.2,3027.2,1.31175572]
[1769596997905,0.23267759,3028.6,3027.2,1.31175572]
[1769596998105,0.23267759,3028.4,3027.2,6.21628114]
[1769596998402,0.23267759,3028.4,3027.2,1.31175572]
[1769596998403,3.12339039,3028.3,3027.2,1.31175572]
[1769596998599,0.23267759,3028.4,3027.2,1.31175572]
[1769596999292,0.23267759,3028.4,3027.1,4.90452542]
[1769596999497,0.23268003,3028.2,3027.1,4.90452542]
[1769597001204,0.23268003,3028.2,3027.1,8.60052542]
[1769597006409,0.23268003,3028.2,3027.2,8.64152542]
[1769597006609,0.23284904,3028.4,3027.2,8.64152542]
[1769597007909,0.00261816,3028.7,3027.5,4.90452542]
[1769597008110,0.00261816,3028.7,3027.6,4.90452542]
[1769597008309,0.23560452,3028.7,3027.6,4.90452542]
[1769597009410,0.23560452,3028.7,3027.5,4.90452542]
[1769597011312,0.00261816,3028.7,3027.5,4.90452542]
[1769597012414,0.00261816,3028.7,3027.5,5.06991542]
[1769597013614,0.00261816,3028.7,3027.8,1.31175572]
[1769597021625,0.00261816,3028.7,3027.7,0.16538]
[1769597021827,0.23825467,3028.7,3027.8,3.79]
[1769597026624,0.23825467,3028.7,3027.7,3.96538]
[1769597028529,0.00261816,3028.7,3027.7,3.96538]
[1769597029731,0.00261816,3028.7,3027.7,0.16538]
[1769597029930,0.00261816,3028.7,3027.7,3.97038]
[1769597031634,0.00261816,3028.7,3027.9,1.31120058]
[1769597036729,0.24055282,3028.7,3027.7,4.90452542]
[1769597038635,0.24055282,3028.7,3027.7,6.215726]
[1769597040234,0.24055282,3028.7,3027.2,7.12475919]
[1769597040235,0.23789078,3028.0,3027.2,10.73387385]
[1769597040540,0.23789078,3028.0,3027.2,4.90452542]
[1769597041137,0.23789078,3028.0,3027.2,1.31120058]
[1769597041334,0.23798033,3028.6,3027.4,1.31120058]
[1769597041537,3.12110508,3028.5,3027.6,1.31120058]
[1769597041838,0.23798033,3028.6,3027.6,1.31120058]
[1769597042033,3.359477,3028.5,3027.6,1.31120058]
[1769597042234,0.23838199,3028.5,3027.6,1.31120058]
[1769597043138,0.23838199,3028.5,3027.4,1.31120058]
[1769597044035,0.00261816,3028.7,3027.4,1.31120058]
[1769597044237,0.00261816,3028.7,3028.2,1.31120058]
[1769597044439,0.00261816,3028.7,3028.2,1.3139633]
[1769597045841,0.2399743,3029.5,3028.4,1.31120058]
[1769597046041,0.2399743,3029.3,3028.4,1.31120058]
[1769597046736,0.2431633,3029.3,3028.4,1.31120058]
[1769597047847,0.2431633,3029.3,3028.6,1.31120058]
[1769597050842,0.2431633,3029.3,3028.4,1.31120058]
[1769597052445,0.2431633,3029.3,3028.2,1.3139633]
[1769597053043,0.2431633,3029.3,3028.2,0.00276272]
[1769597053346,0.24001586,3029.2,3028.2,0.00276272]
[1769597054148,0.24002969,3029.0,3028.2,0.00276272]
[1769597054343,0.003189,3029.3,3028.6,1.31120058]
[1769597054644,0.24321869,3029.3,3028.6,1.31120058]
[1769597054844,0.24321869,3029.3,3028.4,1.31120058]
[1769597062951,0.24321869,3029.3,3028.2,1.3139633]
[1769597069757,0.24321869,3029.3,3028.4,1.31120058]
[1769597069959,0.003189,3029.3,3028.4,1.31120058]
[1769597070970,0.003189,3029.3,3028.6,1.31120058]
[1769597071465,0.003189,3029.3,3028.8,1.31120058]
[1769597073368,0.003189,3029.3,3028.6,1.31120058]
[1769597076368,0.003189,3029.3,3028.3,1.47654058]
[1769597076574,0.24368422,3029.3,3028.3,1.47654058]
[1769597078371,0.24368422,3029.3,3028.2,0.00276272]
[1769597081177,1.55054548,3029.2,3028.2,0.00276272]
[1769597081377,0.2393449,3029.1,3028.2,0.00276272]
[1769597087177,0.23841728,3028.7,3027.9,4.90452542]
[1769597087377,0.23841728,3028.7,3027.8,4.90452542]
[1769597089990,0.23841728,3028.7,3027.8,4.90684124]
[1769597093189,0.23841728,3028.7,3027.9,1.31120058]
[1769597093688,0.23841728,3028.7,3027.8,4.90684124]
[1769597097489,0.23841728,3028.7,3027.8,0.00231582]
[1769597101095,0.23841728,3028.7,3027.6,8.68537462]
[1769597101290,0.2412765,3029.1,3027.9,1.31126448]
[1769597101593,0.2412765,3029.1,3027.8,4.90452542]
[1769597102097,0.2412765,3029.1,3027.8,4.90849116]
[1769597105599,0.2412765,3029.1,3027.8,8.77149116]
[1769597106394,0.2412765,3029.1,3027.8,0.00396574]
[1769597111395,3.12198876,3029.0,3027.8,0.00396574]
[1769597111593,0.24388026,3028.9,3027.8,0.00396574]
[1769597111998,0.40919026,3028.9,3027.8,0.00396574]
[1769597112305,0.24389501,3028.7,3027.8,0.00396574]
[1769597117909,2.442,3029.1,3027.9,0.0846738]
[1769597118113,3.12113568,3029.0,3027.9,0.0846738]
[1769597118310,3.12113568,3028.9,3027.9,0.0846738]
[1769597118608,40.8,3029.2,3027.9,0.0846738]
[1769597118807,3.12114944,3029.1,3027.9,0.0846738]
[1769597119007,3.12114944,3029.0,3027.9,0.0846738]
[1769597119205,3.12114944,3028.9,3027.9,0.0846738]
[1769597119400,40.803189,3029.3,3027.9,0.0846738]
[1769597119612,3.12115637,3029.2,3027.9,0.0846738]
[1769597119807,3.12115637,3029.1,3027.9,0.0846738]
[1769597120003,0.15633793,3028.9,3027.9,0.0846738]
[1769597130341,0.15633793,3028.9,3027.8,0.00396574]
[1769597130836,0.15633793,3028.9,3027.8,0.08310947]
[1769597132739,0.16189375,3028.6,3027.8,0.00396574]
[1769597132948,0.16189375,3028.6,3027.5,4.90452542]
[1769597132949,0.16189375,3028.6,3027.6,0.08124601]
[1769597133845,0.16189375,3028.6,3027.6,0.08386802]
[1769597134048,0.16189375,3028.6,3027.6,0.00262201]
[1769597139150,0.16189375,3028.3,3027.1,4.90452542]
[1769597139341,0.16189375,3028.3,3026.8,4.90452542]
[1769597139542,0.16189375,3028.3,3026.8,4.97110665]